[Event "Titled Tuesday Blitz December 7 2021"]
[White "Rasulov, Vugar"]
[Black "Mirzoev, Azer"]
[WhiteFideId "13402390"]
[BlackFideId "13400304"]
[WhiteElo "2560"]
[BlackElo "2525"]
[Result "0-1"]
[Round "06"]
[TimeControl "180+1"]
[Date "2021.12.07"]
[WhiteClock "0:00:09"]
[BlackClock "0:00:09"]

1. d4 {[%clk 0:03:00]}  d5 {[%clk 0:03:00]} 2. c4 {[%clk 0:03:01]}  c6 {[%clk 0:03:00]} 3. Nf3 {[%clk 0:03:02]}  Nf6 {[%clk 0:03:00]} 4. e3 {[%clk 0:03:00]}  Bf5 {[%clk 0:02:59]} 5. Nc3 {[%clk 0:03:00]}  e6 {[%clk 0:02:59]} 6. Nh4 {[%clk 0:03:00]}  Be4 {[%clk 0:02:59]} 7. Qb3 {[%clk 0:02:59]}  Qb6 {[%clk 0:02:58]} 8. c5 {[%clk 0:02:47]}  Qc7 {[%clk 0:02:55]} 9. f3 {[%clk 0:02:47]}  Bg6 {[%clk 0:02:55]} 10. Bd2 {[%clk 0:02:46]}  Nbd7 {[%clk 0:02:54]} 11. Nxg6 {[%clk 0:02:45]}  hxg6 {[%clk 0:02:53]} 12. f4 {[%clk 0:02:45]}  b6 {[%clk 0:02:53]} 13. cxb6 {[%clk 0:02:45]}  axb6 {[%clk 0:02:52]} 14. Rc1 {[%clk 0:02:44]}  Qb7 {[%clk 0:02:51]} 15. Be2 {[%clk 0:02:35]}  Be7 {[%clk 0:02:51]} 16. O-O {[%clk 0:02:35]}  O-O {[%clk 0:02:50]} 17. g4 {[%clk 0:02:28]}  Rfc8 {[%clk 0:02:37]} 18. g5 {[%clk 0:02:28]}  Ne8 {[%clk 0:02:36]} 19. h4 {[%clk 0:02:20]}  b5 {[%clk 0:02:35]} 20. Qc2 {[%clk 0:02:11]}  Nb6 {[%clk 0:02:25]} 21. h5 {[%clk 0:02:06]}  gxh5 {[%clk 0:02:17]} 22. Bxh5 {[%clk 0:02:01]}  Nc4 {[%clk 0:01:47]} 23. Rf2 {[%clk 0:01:54]}  b4 {[%clk 0:01:37]} 24. Na4 {[%clk 0:01:41]}  g6 {[%clk 0:01:31]} 25. Bxg6 {[%clk 0:01:34]}  fxg6 {[%clk 0:01:31]} 26. Qxg6+ {[%clk 0:01:35]}  Ng7 {[%clk 0:01:31]} 27. b3 {[%clk 0:01:36]}  Bf8 {[%clk 0:01:22]} 28. Rh2 {[%clk 0:01:21]}  Nxd2 {[%clk 0:01:10]} 29. Qh7+ {[%clk 0:01:19]}  Kf7 {[%clk 0:01:10]} 30. Rxd2 {[%clk 0:01:20]}  Ke8 {[%clk 0:01:00]} 31. Rdc2 {[%clk 0:01:15]}  Rc7 {[%clk 0:00:51]} 32. Kf2 {[%clk 0:01:10]}  Ra6 {[%clk 0:00:35]} 33. Qg6+ {[%clk 0:01:09]}  Rf7 {[%clk 0:00:33]} 34. Qd3 {[%clk 0:00:52]}  Qa8 {[%clk 0:00:26]} 35. Rh1 {[%clk 0:00:25]}  Rxa4 {[%clk 0:00:15]} 36. bxa4 {[%clk 0:00:26]}  Qxa4 {[%clk 0:00:15]} 37. Rhc1 {[%clk 0:00:26]}  Rc7 {[%clk 0:00:14]} 38. Qg6+ {[%clk 0:00:25]}  Kd8 {[%clk 0:00:14]} 39. Qh7 {[%clk 0:00:23]}  Qa3 {[%clk 0:00:13]} 40. Qg8 {[%clk 0:00:17]}  Ke8 {[%clk 0:00:12]} 41. Kf3 {[%clk 0:00:16]}  Qa6 {[%clk 0:00:10]} 42. g6 {[%clk 0:00:14]}  c5 {[%clk 0:00:09]} 43. Rh1 {[%clk 0:00:10]}  Qd3 {[%clk 0:00:08]} 44. Rh8 {[%clk 0:00:03]}  Qe4+ {[%clk 0:00:08]} 45. Kg3 {[%clk 0:00:03]}  Qxe3+ {[%clk 0:00:07]} 46. Kg4 {[%clk 0:00:04]}  Qg1+ {[%clk 0:00:05]} 47. Kf3 {[%clk 0:00:04]}  Qd1+ {[%clk 0:00:05]} 48. Re2 {[%clk 0:00:05]}  Qf1+ {[%clk 0:00:05]} 49. Rf2 {[%clk 0:00:03]}  Qd1+ {[%clk 0:00:05]} 50. Kg3 {[%clk 0:00:04]}  Qg1+ {[%clk 0:00:05]} 51. Rg2 {[%clk 0:00:04]}  Qe3+ {[%clk 0:00:04]} 52. Kh2 {[%clk 0:00:04]}  Qxf4+ {[%clk 0:00:05]} 53. Kh1 {[%clk 0:00:04]}  cxd4 {[%clk 0:00:05]} 54. Rh3 {[%clk 0:00:01]}  Rc1+ {[%clk 0:00:04]} 55. Rg1 {[%clk 0:00:02]}  Rxg1+ {[%clk 0:00:04]} 56. Kxg1 {[%clk 0:00:02]}  Qg4+ {[%clk 0:00:05]} 57. Kh2 {[%clk 0:00:03]}  Qxg6 {[%clk 0:00:05]} 58. Qh8 {[%clk 0:00:04]}  Qf5 {[%clk 0:00:05]} 59. Qh4 {[%clk 0:00:03]}  Qe5+ {[%clk 0:00:05]} 60. Kg1 {[%clk 0:00:03]}  Qf5 {[%clk 0:00:05]} 61. Rg3 {[%clk 0:00:02]}  d3 {[%clk 0:00:05]} 62. Qd4 {[%clk 0:00:02]}  Qe4 {[%clk 0:00:05]} 63. Qxd3 {[%clk 0:00:02]}  Qxd3 {[%clk 0:00:05]} 64. Rxd3 {[%clk 0:00:03]}  Nf5 {[%clk 0:00:05]} 65. Kf2 {[%clk 0:00:04]}  Bd6 {[%clk 0:00:06]} 66. Rh3 {[%clk 0:00:04]}  Kd7 {[%clk 0:00:06]} 67. Ke2 {[%clk 0:00:05]}  Kc6 {[%clk 0:00:06]} 68. Kd3 {[%clk 0:00:06]}  Kc5 {[%clk 0:00:06]} 69. Rh8 {[%clk 0:00:06]}  e5 {[%clk 0:00:06]} 70. Rc8+ {[%clk 0:00:07]}  Kb6 {[%clk 0:00:06]} 71. Re8 {[%clk 0:00:06]}  Nd4 {[%clk 0:00:06]} 72. Rd8 {[%clk 0:00:06]}  Kc6 {[%clk 0:00:07]} 73. Rc8+ {[%clk 0:00:06]}  Kd7 {[%clk 0:00:06]} 74. Ra8 {[%clk 0:00:07]}  Bc5 {[%clk 0:00:07]} 75. Ra5 {[%clk 0:00:06]}  Kd6 {[%clk 0:00:07]} 76. Ra6+ {[%clk 0:00:06]}  Kc7 {[%clk 0:00:07]} 77. Rg6 {[%clk 0:00:05]}  e4+ {[%clk 0:00:07]} 78. Kd2 {[%clk 0:00:06]}  Nb5 {[%clk 0:00:07]} 79. Rg5 {[%clk 0:00:05]}  Kc6 {[%clk 0:00:07]} 80. Rg6+ {[%clk 0:00:06]}  Bd6 {[%clk 0:00:08]} 81. Ke3 {[%clk 0:00:07]}  Nc3 {[%clk 0:00:08]} 82. Rg2 {[%clk 0:00:07]}  Kc5 {[%clk 0:00:08]} 83. Rd2 {[%clk 0:00:06]}  Kc4 {[%clk 0:00:08]} 84. Rd4+ {[%clk 0:00:06]}  Kc5 {[%clk 0:00:08]} 85. Rd2 {[%clk 0:00:07]}  Be5 {[%clk 0:00:09]} 86. Rg2 {[%clk 0:00:06]}  Kc4 {[%clk 0:00:09]} 87. Kd2 {[%clk 0:00:06]}  Bd4 {[%clk 0:00:09]} 88. Rg8 {[%clk 0:00:07]}  Nxa2 {[%clk 0:00:09]} 89. Rc8+ {[%clk 0:00:08]}  Bc5 {[%clk 0:00:09]} 90. Ra8 {[%clk 0:00:08]}  b3 {[%clk 0:00:09]} 91. Ra3 {[%clk 0:00:09]}  Bxa3 {[%clk 0:00:09]} 0-1


[Site "https://www.chess.com"]

[Event "Titled Tuesday Blitz December 7 2021"]
[White "Sarana, Alexey"]
[Black "Bologan, Victor"]
[WhiteFideId "24133795"]
[BlackFideId "13900048"]
[WhiteElo "2672"]
[BlackElo "2472"]
[Result "0-1"]
[Round "06"]
[TimeControl "180+1"]
[Date "2021.12.07"]
[WhiteClock "0:00:06"]
[BlackClock "0:01:05"]

1. c4 {[%clk 0:03:00]}  e5 {[%clk 0:02:57]} 2. Nc3 {[%clk 0:03:00]}  Nf6 {[%clk 0:02:56]} 3. e3 {[%clk 0:03:00]}  Bb4 {[%clk 0:02:56]} 4. Nd5 {[%clk 0:02:55]}  Nxd5 {[%clk 0:02:56]} 5. cxd5 {[%clk 0:02:56]}  O-O {[%clk 0:02:56]} 6. Nf3 {[%clk 0:02:55]}  d6 {[%clk 0:02:54]} 7. Bd3 {[%clk 0:02:50]}  f5 {[%clk 0:02:46]} 8. Bb1 {[%clk 0:02:50]}  c5 {[%clk 0:02:43]} 9. dxc6 {[%clk 0:02:39]}  Nxc6 {[%clk 0:02:42]} 10. O-O {[%clk 0:02:40]}  d5 {[%clk 0:02:33]} 11. Qb3 {[%clk 0:02:34]}  Be7 {[%clk 0:02:28]} 12. d3 {[%clk 0:02:20]}  Kh8 {[%clk 0:02:27]} 13. Bd2 {[%clk 0:02:19]}  Rb8 {[%clk 0:02:15]} 14. Bc3 {[%clk 0:02:18]}  Bf6 {[%clk 0:02:12]} 15. d4 {[%clk 0:02:08]}  e4 {[%clk 0:02:10]} 16. Ne5 {[%clk 0:02:08]}  Be6 {[%clk 0:02:07]} 17. f4 {[%clk 0:01:44]}  Bxe5 {[%clk 0:01:45]} 18. fxe5 {[%clk 0:01:41]}  Qg5 {[%clk 0:01:41]} 19. Be1 {[%clk 0:01:32]}  f4 {[%clk 0:01:37]} 20. Bxe4 {[%clk 0:01:06]}  fxe3 {[%clk 0:01:29]} 21. Bc3 {[%clk 0:00:26]}  e2 {[%clk 0:01:15]} 22. Rf3 {[%clk 0:00:10]}  dxe4 {[%clk 0:01:13]} 23. Rg3 {[%clk 0:00:08]}  Qf5 {[%clk 0:01:08]} 24. d5 {[%clk 0:00:06]}  Qf1+ {[%clk 0:01:05]} 0-1


[Site "https://www.chess.com"]

[Event "Titled Tuesday Blitz December 7 2021"]
[White "Sinitsina, Anastassia"]
[Black "Vakhlamov, Igor L."]
[WhiteFideId "4504640"]
[BlackFideId "24126748"]
[WhiteElo "2161"]
[BlackElo "2416"]
[Result "0-1"]
[Round "06"]
[TimeControl "180+1"]
[Date "2021.12.07"]
[WhiteClock "0:00:59"]
[BlackClock "0:00:54"]

1. Nf3 {[%clk 0:03:00]}  c5 {[%clk 0:02:58]} 2. e4 {[%clk 0:02:59]}  Nc6 {[%clk 0:02:58]} 3. d4 {[%clk 0:02:59]}  cxd4 {[%clk 0:02:59]} 4. Nxd4 {[%clk 0:03:00]}  g6 {[%clk 0:02:59]} 5. Nc3 {[%clk 0:02:59]}  Bg7 {[%clk 0:03:00]} 6. Be3 {[%clk 0:03:00]}  Nf6 {[%clk 0:03:00]} 7. f3 {[%clk 0:02:59]}  O-O {[%clk 0:03:00]} 8. Qd2 {[%clk 0:02:59]}  d5 {[%clk 0:03:00]} 9. Nxc6 {[%clk 0:02:58]}  bxc6 {[%clk 0:03:01]} 10. e5 {[%clk 0:02:57]}  Nd7 {[%clk 0:02:59]} 11. f4 {[%clk 0:02:58]}  f6 {[%clk 0:02:56]} 12. Nxd5 {[%clk 0:02:49]}  fxe5 {[%clk 0:02:26]} 13. fxe5 {[%clk 0:02:24]}  cxd5 {[%clk 0:02:03]} 14. Qxd5+ {[%clk 0:02:24]}  Kh8 {[%clk 0:02:01]} 15. Qxa8 {[%clk 0:02:24]}  Qa5+ {[%clk 0:01:55]} 16. c3 {[%clk 0:02:22]}  Qxe5 {[%clk 0:01:25]} 17. Qxa7 {[%clk 0:02:20]}  Bh6 {[%clk 0:01:17]} 18. Kd2 {[%clk 0:02:08]}  Rd8 {[%clk 0:01:01]} 19. Qd4 {[%clk 0:01:06]}  Bxe3+ {[%clk 0:00:58]} 20. Qxe3 {[%clk 0:01:07]}  Nc5+ {[%clk 0:00:58]} 21. Ke2 {[%clk 0:01:04]}  Bg4+ {[%clk 0:00:57]} 22. Kf2 {[%clk 0:00:59]}  Rf8+ {[%clk 0:00:54]} 0-1


[Site "https://www.chess.com"]

[Event "Titled Tuesday Blitz December 7 2021"]
[White "Sokolin, Leonid"]
[Black "Matinian, Nikita"]
[WhiteFideId "2009161"]
[BlackFideId "24129100"]
[WhiteElo "2394"]
[BlackElo "2422"]
[Result "1/2-1/2"]
[Round "06"]
[TimeControl "180+1"]
[Date "2021.12.07"]
[WhiteClock "0:00:04"]
[BlackClock "0:00:09"]

1. e4 {[%clk 0:03:00]}  e5 {[%clk 0:02:59]} 2. Nf3 {[%clk 0:03:00]}  Nc6 {[%clk 0:02:59]} 3. Nc3 {[%clk 0:03:00]}  Nf6 {[%clk 0:02:59]} 4. Bb5 {[%clk 0:03:00]}  Bd6 {[%clk 0:02:58]} 5. d4 {[%clk 0:02:59]}  exd4 {[%clk 0:02:54]} 6. Nxd4 {[%clk 0:02:58]}  O-O {[%clk 0:02:52]} 7. O-O {[%clk 0:02:55]}  Re8 {[%clk 0:02:50]} 8. Nf5 {[%clk 0:02:49]}  Bf8 {[%clk 0:02:26]} 9. Bg5 {[%clk 0:02:28]}  d6 {[%clk 0:02:22]} 10. Bxc6 {[%clk 0:02:23]}  bxc6 {[%clk 0:02:20]} 11. Qf3 {[%clk 0:02:23]}  Bxf5 {[%clk 0:02:18]} 12. Qxf5 {[%clk 0:02:23]}  Qd7 {[%clk 0:02:16]} 13. Qxd7 {[%clk 0:02:13]}  Nxd7 {[%clk 0:02:16]} 14. Rad1 {[%clk 0:02:12]}  Rab8 {[%clk 0:02:13]} 15. b3 {[%clk 0:02:12]}  g6 {[%clk 0:02:08]} 16. f3 {[%clk 0:02:09]}  Bg7 {[%clk 0:02:06]} 17. Na4 {[%clk 0:02:07]}  c5 {[%clk 0:02:02]} 18. Rfe1 {[%clk 0:02:04]}  Nb6 {[%clk 0:02:02]} 19. Nxb6 {[%clk 0:02:01]}  axb6 {[%clk 0:02:03]} 20. a4 {[%clk 0:02:00]}  b5 {[%clk 0:02:00]} 21. axb5 {[%clk 0:01:58]}  Rxb5 {[%clk 0:02:01]} 22. Kf2 {[%clk 0:01:46]}  Ra5 {[%clk 0:02:01]} 23. Be3 {[%clk 0:01:39]}  Ra2 {[%clk 0:02:00]} 24. Re2 {[%clk 0:01:39]}  f5 {[%clk 0:01:56]} 25. exf5 {[%clk 0:01:37]}  gxf5 {[%clk 0:01:57]} 26. Rdd2 {[%clk 0:01:11]}  Kf7 {[%clk 0:01:48]} 27. Bf4 {[%clk 0:01:02]}  Bd4+ {[%clk 0:01:42]} 28. Kg3 {[%clk 0:01:00]}  Rg8+ {[%clk 0:01:40]} 29. Kh3 {[%clk 0:01:01]}  Rg6 {[%clk 0:01:36]} 30. g4 {[%clk 0:00:57]}  Ra1 {[%clk 0:01:28]} 31. g5 {[%clk 0:00:41]}  Rf1 {[%clk 0:01:20]} 32. Kg2 {[%clk 0:00:39]}  Rg1+ {[%clk 0:01:20]} 33. Kh3 {[%clk 0:00:38]}  Rg8 {[%clk 0:01:00]} 34. Rg2 {[%clk 0:00:33]}  Rf1 {[%clk 0:00:58]} 35. Kg3 {[%clk 0:00:33]}  h6 {[%clk 0:00:56]} 36. h4 {[%clk 0:00:32]}  hxg5 {[%clk 0:00:57]} 37. hxg5 {[%clk 0:00:32]}  Rh8 {[%clk 0:00:57]} 38. Rh2 {[%clk 0:00:30]}  Rg1+ {[%clk 0:00:56]} 39. Rdg2 {[%clk 0:00:29]}  Rxh2 {[%clk 0:00:43]} 40. Kxh2 {[%clk 0:00:25]}  Rf1 {[%clk 0:00:39]} 41. Kg3 {[%clk 0:00:25]}  Kg6 {[%clk 0:00:39]} 42. Bd2 {[%clk 0:00:20]}  Rd1 {[%clk 0:00:34]} 43. f4 {[%clk 0:00:19]}  d5 {[%clk 0:00:24]} 44. Rh2 {[%clk 0:00:19]}  Bg7 {[%clk 0:00:24]} 45. Kf3 {[%clk 0:00:19]}  c4 {[%clk 0:00:24]} 46. Ke2 {[%clk 0:00:19]}  cxb3 {[%clk 0:00:20]} 47. cxb3 {[%clk 0:00:17]}  Rb1 {[%clk 0:00:20]} 48. Rh3 {[%clk 0:00:17]}  c5 {[%clk 0:00:20]} 49. Re3 {[%clk 0:00:17]}  Bd4 {[%clk 0:00:18]} 50. Re6+ {[%clk 0:00:17]}  Kf7 {[%clk 0:00:18]} 51. Rd6 {[%clk 0:00:17]}  Rxb3 {[%clk 0:00:18]} 52. Rxd5 {[%clk 0:00:17]}  Rh3 {[%clk 0:00:18]} 53. Rxf5+ {[%clk 0:00:17]}  Ke6 {[%clk 0:00:18]} 54. Rf8 {[%clk 0:00:18]}  Kd5 {[%clk 0:00:18]} 55. g6 {[%clk 0:00:15]}  Rg3 {[%clk 0:00:18]} 56. f5 {[%clk 0:00:15]}  Ke4 {[%clk 0:00:19]} 57. Rf7 {[%clk 0:00:14]}  c4 {[%clk 0:00:18]} 58. f6 {[%clk 0:00:11]}  c3 {[%clk 0:00:18]} 59. Re7+ {[%clk 0:00:12]}  Kf5 {[%clk 0:00:15]} 60. f7 {[%clk 0:00:12]}  Bg7 {[%clk 0:00:13]} 61. Re8 {[%clk 0:00:07]}  Rg2+ {[%clk 0:00:12]} 62. Kf3 {[%clk 0:00:06]}  cxd2 {[%clk 0:00:11]} 63. f8=Q+ {[%clk 0:00:04]}  Bxf8 {[%clk 0:00:11]} 64. Rxf8+ {[%clk 0:00:05]}  Kxg6 {[%clk 0:00:11]} 65. Rd8 {[%clk 0:00:04]}  Rh2 {[%clk 0:00:10]} 66. Kg3 {[%clk 0:00:05]}  Re2 {[%clk 0:00:10]} 67. Kf3 {[%clk 0:00:05]}  Re6 {[%clk 0:00:09]} 68. Rxd2 {[%clk 0:00:04]}  Rf6+ {[%clk 0:00:09]} 69. Kg4 {[%clk 0:00:04]}  Re6 {[%clk 0:00:09]} 70. Rd4 {[%clk 0:00:04]}  Rf6 {[%clk 0:00:09]} 71. Rf4 {[%clk 0:00:05]}  Rxf4+ {[%clk 0:00:09]} 72. Kxf4 {[%clk 0:00:04]} 1/2-1/2


[Site "https://www.chess.com"]

[Event "Titled Tuesday Blitz December 7 2021"]
[White "Solon, Nathan"]
[Black "Bueno, Alfeu Junior Varela"]
[WhiteFideId "2017229"]
[BlackFideId "2108879"]
[WhiteElo "2563"]
[BlackElo "2225"]
[Result "1-0"]
[Round "06"]
[TimeControl "180+1"]
[Date "2021.12.07"]
[WhiteClock "0:00:48"]
[BlackClock "0:00:23"]

1. d4 {[%clk 0:03:00]}  e6 {[%clk 0:02:59]} 2. c4 {[%clk 0:03:00]}  f5 {[%clk 0:02:59]} 3. g3 {[%clk 0:02:58]}  Nf6 {[%clk 0:02:59]} 4. Bg2 {[%clk 0:02:58]}  Be7 {[%clk 0:02:59]} 5. Nc3 {[%clk 0:02:58]}  O-O {[%clk 0:03:00]} 6. Nf3 {[%clk 0:02:59]}  d5 {[%clk 0:03:00]} 7. O-O {[%clk 0:02:58]}  c6 {[%clk 0:03:00]} 8. b3 {[%clk 0:02:52]}  b6 {[%clk 0:02:54]} 9. Bb2 {[%clk 0:02:52]}  Bb7 {[%clk 0:02:54]} 10. Rc1 {[%clk 0:02:48]}  Bd6 {[%clk 0:02:54]} 11. Qc2 {[%clk 0:02:44]}  Nbd7 {[%clk 0:02:54]} 12. cxd5 {[%clk 0:02:42]}  cxd5 {[%clk 0:02:40]} 13. Nb5 {[%clk 0:02:42]}  Qe7 {[%clk 0:02:27]} 14. Nxd6 {[%clk 0:02:38]}  Qxd6 {[%clk 0:02:28]} 15. Qc7 {[%clk 0:02:38]}  Qxc7 {[%clk 0:02:27]} 16. Rxc7 {[%clk 0:02:39]}  Ba6 {[%clk 0:02:23]} 17. Rfc1 {[%clk 0:02:04]}  Bxe2 {[%clk 0:02:19]} 18. Ng5 {[%clk 0:02:05]}  Rfe8 {[%clk 0:02:11]} 19. Re1 {[%clk 0:02:04]}  h6 {[%clk 0:02:04]} 20. Nh3 {[%clk 0:01:56]}  Bh5 {[%clk 0:01:51]} 21. Nf4 {[%clk 0:01:54]}  Bf7 {[%clk 0:01:52]} 22. Rec1 {[%clk 0:01:49]}  b5 {[%clk 0:01:42]} 23. Bf1 {[%clk 0:01:43]}  a6 {[%clk 0:01:40]} 24. a4 {[%clk 0:01:32]}  bxa4 {[%clk 0:01:39]} 25. bxa4 {[%clk 0:01:33]}  Reb8 {[%clk 0:01:38]} 26. Ba3 {[%clk 0:01:28]}  Rb3 {[%clk 0:01:33]} 27. Bd6 {[%clk 0:01:20]}  g5 {[%clk 0:01:23]} 28. Nd3 {[%clk 0:01:19]}  Rb6 {[%clk 0:01:15]} 29. Be7 {[%clk 0:01:15]}  Re8 {[%clk 0:01:10]} 30. Bxf6 {[%clk 0:01:10]}  Nxf6 {[%clk 0:01:11]} 31. Ne5 {[%clk 0:01:10]}  Bh5 {[%clk 0:01:11]} 32. a5 {[%clk 0:01:06]}  Rd6 {[%clk 0:01:07]} 33. R1c6 {[%clk 0:01:06]}  Rxc6 {[%clk 0:01:02]} 34. Rxc6 {[%clk 0:01:07]}  Ng4 {[%clk 0:00:50]} 35. Nxg4 {[%clk 0:00:51]}  Bxg4 {[%clk 0:00:51]} 36. Bxa6 {[%clk 0:00:51]}  Rb8 {[%clk 0:00:39]} 37. Rc8+ {[%clk 0:00:50]}  Rxc8 {[%clk 0:00:23]} 38. Bxc8 {[%clk 0:00:51]}  f4 {[%clk 0:00:23]} 39. a6 {[%clk 0:00:50]}  e5 {[%clk 0:00:23]} 40. Bxg4 {[%clk 0:00:48]} 1-0


[Site "https://www.chess.com"]

[Event "Titled Tuesday Blitz December 7 2021"]
[White "Svicevic, Rastko"]
[Black "Mustafayev, Farid"]
[WhiteFideId "916315"]
[BlackFideId "13408771"]
[WhiteElo "2098"]
[BlackElo "2091"]
[Result "0-1"]
[Round "06"]
[TimeControl "180+1"]
[Date "2021.12.07"]
[WhiteClock "0:01:10"]
[BlackClock "0:01:51"]

1. d4 {[%clk 0:03:00]}  Nf6 {[%clk 0:02:58]} 2. Bg5 {[%clk 0:03:01]}  Ne4 {[%clk 0:02:57]} 3. Bf4 {[%clk 0:03:01]}  d5 {[%clk 0:02:56]} 4. e3 {[%clk 0:03:01]}  Nd7 {[%clk 0:02:53]} 5. Bd3 {[%clk 0:03:01]}  Nd6 {[%clk 0:02:47]} 6. Ne2 {[%clk 0:03:00]}  g6 {[%clk 0:02:47]} 7. Nd2 {[%clk 0:02:48]}  Bg7 {[%clk 0:02:46]} 8. c3 {[%clk 0:02:40]}  e5 {[%clk 0:02:38]} 9. Bg3 {[%clk 0:02:39]}  O-O {[%clk 0:02:37]} 10. O-O {[%clk 0:02:35]}  h5 {[%clk 0:02:31]} 11. f4 {[%clk 0:02:20]}  e4 {[%clk 0:02:20]} 12. Bc2 {[%clk 0:02:18]}  Nf5 {[%clk 0:02:20]} 13. Bf2 {[%clk 0:02:17]}  Nf6 {[%clk 0:02:17]} 14. c4 {[%clk 0:02:03]}  Ng4 {[%clk 0:02:13]} 15. cxd5 {[%clk 0:01:25]}  Nfxe3 {[%clk 0:02:11]} 16. Qc1 {[%clk 0:01:17]}  Nxc2 {[%clk 0:01:51]} 17. Qxc2 {[%clk 0:01:10]}  e3 {[%clk 0:01:51]} 0-1


[Site "https://www.chess.com"]

[Event "Titled Tuesday Blitz December 7 2021"]
[White "Sviridov, Valery"]
[Black "Pulpan, Jakub"]
[WhiteFideId "4120680"]
[BlackFideId "302759"]
[WhiteElo "2454"]
[BlackElo "2471"]
[Result "1-0"]
[Round "06"]
[TimeControl "180+1"]
[Date "2021.12.07"]
[WhiteClock "0:01:28"]
[BlackClock "0:00:39"]

1. Nf3 {[%clk 0:03:00]}  d5 {[%clk 0:02:58]} 2. g3 {[%clk 0:03:00]}  g6 {[%clk 0:02:58]} 3. Bg2 {[%clk 0:03:00]}  Bg7 {[%clk 0:02:59]} 4. O-O {[%clk 0:03:01]}  e5 {[%clk 0:02:59]} 5. d3 {[%clk 0:03:01]}  Ne7 {[%clk 0:03:00]} 6. e4 {[%clk 0:03:00]}  O-O {[%clk 0:02:58]} 7. exd5 {[%clk 0:03:00]}  Nxd5 {[%clk 0:02:57]} 8. Re1 {[%clk 0:03:00]}  Nc6 {[%clk 0:02:57]} 9. Nc3 {[%clk 0:03:00]}  Nde7 {[%clk 0:02:54]} 10. Bd2 {[%clk 0:02:59]}  a5 {[%clk 0:02:52]} 11. a3 {[%clk 0:02:56]}  Nf5 {[%clk 0:02:50]} 12. Rb1 {[%clk 0:02:55]}  Re8 {[%clk 0:02:47]} 13. b4 {[%clk 0:02:54]}  axb4 {[%clk 0:02:45]} 14. axb4 {[%clk 0:02:55]}  Nfd4 {[%clk 0:02:44]} 15. b5 {[%clk 0:02:50]}  Nxf3+ {[%clk 0:02:26]} 16. Bxf3 {[%clk 0:02:50]}  Nd4 {[%clk 0:02:27]} 17. Bg2 {[%clk 0:02:51]}  h5 {[%clk 0:02:07]} 18. h3 {[%clk 0:02:47]}  Be6 {[%clk 0:02:06]} 19. Ne4 {[%clk 0:02:33]}  Qc8 {[%clk 0:01:48]} 20. c3 {[%clk 0:02:28]}  Nf5 {[%clk 0:01:45]} 21. Nc5 {[%clk 0:02:28]}  Rb8 {[%clk 0:01:40]} 22. Nxe6 {[%clk 0:02:28]}  Qxe6 {[%clk 0:01:41]} 23. Qe2 {[%clk 0:02:13]}  b6 {[%clk 0:01:29]} 24. Ra1 {[%clk 0:02:12]}  Nd6 {[%clk 0:01:17]} 25. c4 {[%clk 0:02:01]}  e4 {[%clk 0:01:16]} 26. Ra4 {[%clk 0:02:01]}  exd3 {[%clk 0:01:17]} 27. Qxd3 {[%clk 0:02:02]}  Qf5 {[%clk 0:01:13]} 28. Qxf5 {[%clk 0:02:01]}  Nxf5 {[%clk 0:01:14]} 29. Rxe8+ {[%clk 0:01:57]}  Rxe8 {[%clk 0:01:14]} 30. Kf1 {[%clk 0:01:58]}  Bh6 {[%clk 0:01:03]} 31. Bc6 {[%clk 0:01:55]}  Re7 {[%clk 0:00:55]} 32. Bb4 {[%clk 0:01:52]}  Re5 {[%clk 0:00:50]} 33. Ra7 {[%clk 0:01:51]}  Nd6 {[%clk 0:00:46]} 34. Rxc7 {[%clk 0:01:29]}  Nxc4 {[%clk 0:00:43]} 35. Rc8+ {[%clk 0:01:29]}  Kh7 {[%clk 0:00:42]} 36. Bc3 {[%clk 0:01:30]}  Nd6 {[%clk 0:00:40]} 37. Rh8+ {[%clk 0:01:27]}  Kxh8 {[%clk 0:00:39]} 38. Bxe5+ {[%clk 0:01:28]} 1-0


[Site "https://www.chess.com"]

[Event "Titled Tuesday Blitz December 7 2021"]
[White "Vidit, Santosh Gujrathi"]
[Black "Fawzy, Adham"]
[WhiteFideId "5029465"]
[BlackFideId "10613129"]
[WhiteElo "2628"]
[BlackElo "2508"]
[Result "0-1"]
[Round "06"]
[TimeControl "180+1"]
[Date "2021.12.07"]
[WhiteClock "0:00:01"]
[BlackClock "0:00:01"]

1. d4 {[%clk 0:03:00]}  Nf6 {[%clk 0:02:59]} 2. c4 {[%clk 0:03:00]}  e6 {[%clk 0:02:59]} 3. Nf3 {[%clk 0:02:55]}  Bb4+ {[%clk 0:02:59]} 4. Bd2 {[%clk 0:02:55]}  Qe7 {[%clk 0:02:59]} 5. g3 {[%clk 0:02:56]}  b6 {[%clk 0:03:00]} 6. Bg2 {[%clk 0:02:56]}  Bb7 {[%clk 0:03:00]} 7. O-O {[%clk 0:02:56]}  Bxd2 {[%clk 0:03:00]} 8. Qxd2 {[%clk 0:02:56]}  O-O {[%clk 0:03:01]} 9. Re1 {[%clk 0:02:48]}  d5 {[%clk 0:03:00]} 10. cxd5 {[%clk 0:02:46]}  exd5 {[%clk 0:02:43]} 11. b4 {[%clk 0:02:43]}  c6 {[%clk 0:02:37]} 12. Qb2 {[%clk 0:02:38]}  Nbd7 {[%clk 0:02:34]} 13. Nc3 {[%clk 0:02:36]}  Ne4 {[%clk 0:02:23]} 14. a4 {[%clk 0:02:35]}  Rae8 {[%clk 0:02:17]} 15. e3 {[%clk 0:02:32]}  Nd6 {[%clk 0:01:52]} 16. b5 {[%clk 0:02:22]}  Nc4 {[%clk 0:01:47]} 17. Qa2 {[%clk 0:02:08]}  c5 {[%clk 0:01:42]} 18. Rad1 {[%clk 0:02:03]}  Nf6 {[%clk 0:01:36]} 19. Bf1 {[%clk 0:01:35]}  Rc8 {[%clk 0:00:52]} 20. Rc1 {[%clk 0:01:23]}  Nd6 {[%clk 0:00:38]} 21. a5 {[%clk 0:01:18]}  Nfe4 {[%clk 0:00:34]} 22. axb6 {[%clk 0:00:30]}  Nxc3 {[%clk 0:00:28]} 23. Rxc3 {[%clk 0:00:31]}  axb6 {[%clk 0:00:28]} 24. Rec1 {[%clk 0:00:23]}  Ne4 {[%clk 0:00:19]} 25. Ra3 {[%clk 0:00:17]}  Ra8 {[%clk 0:00:18]} 26. Ra1 {[%clk 0:00:12]}  h6 {[%clk 0:00:12]} 27. Qb2 {[%clk 0:00:05]}  Rxa3 {[%clk 0:00:10]} 28. Rxa3 {[%clk 0:00:05]}  c4 {[%clk 0:00:11]} 29. Ra7 {[%clk 0:00:05]}  Ra8 {[%clk 0:00:11]} 30. Qa1 {[%clk 0:00:05]}  Rxa7 {[%clk 0:00:10]} 31. Qxa7 {[%clk 0:00:06]}  Qc7 {[%clk 0:00:10]} 32. Ne5 {[%clk 0:00:06]}  c3 {[%clk 0:00:10]} 33. Nd3 {[%clk 0:00:02]}  c2 {[%clk 0:00:08]} 34. Nc1 {[%clk 0:00:01]}  Qc3 {[%clk 0:00:05]} 35. Qxb7 {[%clk 0:00:01]}  Qd2 {[%clk 0:00:01]} 0-1


[Site "https://www.chess.com"]